bitfinex-derivatives/quotes_SOLF0:USTF0_20251216
["timestamp","ask_amount","ask_price","bid_price","bid_amount"]
[1765914088254,3.23,127.35,127.33,7.12196229]
[1765914089449,3.23,127.35,127.33,8.73196229]
[1765914090757,0.05874738,127.36,127.35,1.61]
[1765914091057,0.05874738,127.36,127.34,7.069]
[1765914091257,0.05874738,127.36,127.34,8.679]
[1765914092155,3.28874738,127.36,127.34,8.679]
[1765914094352,0.05874738,127.36,127.35,1.61]
[1765914094556,0.05874738,127.36,127.35,8.6786]
[1765914095057,0.05874738,127.36,127.35,1.61]
[1765914097261,0.05874738,127.36,127.34,8.6792]
[1765914099564,0.05874738,127.36,127.35,1.61]
[1765914100365,0.05874738,127.36,127.33,0.05226229]
[1765914100366,3.43874738,127.36,127.33,1.66226229]
[1765914101560,3.43874738,127.36,127.33,8.73196229]
[1765914101762,3.38,127.35,127.33,0.05226229]
[1765914102761,10.4492,127.34,127.33,0.05226229]
[1765914103361,3.38,127.34,127.33,0.05226229]
[1765914106470,10.4492,127.34,127.33,0.05226229]
[1765914106854,3.38,127.34,127.33,0.05226229]
[1765914107058,10.4487,127.35,127.33,1.66226229]
[1765914108263,3.38,127.34,127.33,0.05226229]
[1765914108475,10.4492,127.34,127.33,0.05226229]
[1765914109464,0.05874738,127.36,127.33,1.66226229]
[1765914110604,0.05874738,127.36,127.33,8.73196229]
[1765914110762,0.05874738,127.36,127.34,1.61]
[1765914111571,0.05874738,127.36,127.34,8.679]
[1765914111769,0.05874738,127.36,127.35,1.61]
[1765914117272,3.38,127.4,127.37,1.55]
[1765914118275,3.42961426,127.4,127.37,1.59984428]
[1765914120367,3.42961426,127.4,127.37,8.66724428]
[1765914120569,0.04961426,127.4,127.38,1.55]
[1765914120975,0.04961426,127.4,127.37,1.59984428]
[1765914120976,3.42961426,127.4,127.37,1.59984428]
[1765914121170,3.38,127.39,127.37,0.04984428]
[1765914121375,3.38,127.38,127.37,0.04984428]
[1765914123780,10.447,127.38,127.37,0.04984428]
[1765914124682,12.81564221,127.38,127.37,0.04984428]
[1765914126283,3.39,127.36,127.33,8.6297]
[1765914126578,3.39,127.36,127.29,176.8015]
[1765914126579,3.39,127.35,127.31,1.61]
[1765914127178,3.4497536,127.34,127.32,0.05288681]
[1765914129387,3.39,127.33,127.32,0.05288681]
[1765914137982,5.81839581,127.34,127.32,0.05288681]
[1765914138286,3.39,127.33,127.32,0.05288681]
[1765914141395,3.4497536,127.34,127.32,1.66288681]
[1765914141597,3.4497536,127.34,127.32,8.73298681]
[1765914147903,0.0597536,127.34,127.33,11.04844221]
[1765914148794,3.39,127.38,127.32,0.05288681]
[1765914148795,3.39,127.38,127.35,11.04704221]
[1765914149696,3.44290452,127.38,127.35,11.10258363]
[1765914150404,3.39,127.37,127.35,2.42418363]
[1765914151405,3.39,127.37,127.35,4.03418363]
[1765914151609,3.44290452,127.38,127.36,1.61]
[1765914152292,0.05290452,127.38,127.37,3.97864221]
[1765914153615,0.05290452,127.38,127.37,11.04614221]
[1765914154006,3.23290452,127.38,127.36,2.36864221]
[1765914154208,3.23290452,127.38,127.36,3.97864221]
[1765914155005,0.05290452,127.38,127.36,3.97864221]
[1765914155710,0.05290452,127.38,127.36,11.04674221]
[1765914156212,3.29290452,127.38,127.36,11.04674221]
[1765914157713,0.05290452,127.38,127.37,1.61]
[1765914159412,0.05290452,127.38,127.37,8.6775]
[1765914160011,3.29290452,127.38,127.37,7.0675]
[1765914160205,3.29290452,127.38,127.36,3.97864221]
[1765914160620,3.29290452,127.38,127.35,0.05554142]
[1765914160818,3.24,127.37,127.35,0.05554142]
[1765914168019,10.3077,127.37,127.35,0.05554142]
[1765914168314,3.24,127.36,127.35,0.05554142]
[1765914173322,10.3081,127.36,127.35,0.05554142]
[1765914174329,3.24,127.35,127.32,1.66]
[1765914175123,3.29412959,127.35,127.32,1.72050181]
[1765914175728,3.29412959,127.35,127.32,8.79080181]
[1765914176226,0.05412959,127.35,127.33,8.7296]
[1765914177022,0.05412959,127.35,127.34,1.66]
[1765914178115,0.05412959,127.35,127.33,8.7296]
[1765914178315,3.29412959,127.35,127.33,8.7296]
[1765914181234,0.05412959,127.35,127.34,8.7292]
[1765914183032,0.05412959,127.35,127.34,1.66]
[1765914183438,0.05412959,127.35,127.33,7.0697]
[1765914183439,3.29412959,127.35,127.33,7.0697]
[1765914183829,3.29412959,127.35,127.33,8.7297]
[1765914186326,0.05412959,127.35,127.34,1.66]
[1765914186527,0.05412959,127.35,127.33,8.7297]
[1765914188041,0.05412959,127.35,127.34,1.66]
[1765914188542,0.05412959,127.35,127.34,8.7292]
[1765914194171,0.05412959,127.35,127.34,1.66]
[1765914195152,3.31412959,127.35,127.33,8.7297]
[1765914196043,0.05412959,127.35,127.34,1.66]
[1765914202252,3.31412959,127.35,127.32,8.79070181]
[1765914202457,3.31412959,127.35,127.32,7.13070181]
[1765914202859,3.26,127.33,127.32,0.06050181]
[1765914204660,10.3292,127.34,127.32,1.72050181]
[1765914204962,7.12282959,127.35,127.32,1.72050181]
[1765914205155,10.38282959,127.35,127.32,1.72050181]
[1765914205952,3.26,127.34,127.32,0.06050181]
[1765914206357,3.26,127.34,127.32,1.72050181]
[1765914207657,3.26,127.34,127.32,0.06050181]
[1765914207966,10.3293,127.34,127.32,0.06050181]
[1765914208162,0.05412959,127.35,127.32,8.79080181]
[1765914208354,3.31412959,127.35,127.33,1.66]
[1765914209058,0.05412959,127.35,127.33,8.7296]
[1765914209363,0.05412959,127.35,127.34,1.66]
[1765914209956,0.05412959,127.35,127.34,8.7292]
[1765914212965,3.31412959,127.35,127.33,1.66]
[1765914213161,3.31412959,127.35,127.32,7.13040181]
[1765914213162,3.31412959,127.35,127.32,1.72050181]
[1765914213764,3.13,127.34,127.32,1.72050181]
[1765914215366,3.16,127.33,127.32,0.06050181]
[1765914219272,7.0692,127.34,127.32,0.06050181]
[1765914219473,10.2292,127.34,127.32,1.72050181]
[1765914222276,3.16,127.34,127.32,1.72050181]
[1765914225379,3.16,127.34,127.32,0.06050181]
[1765914228177,3.16,127.34,127.32,1.72050181]
[1765914228386,3.16,127.34,127.32,8.79060181]
[1765914228679,3.16,127.34,127.32,7.13060181]
[1765914233493,3.16,127.34,127.32,0.06050181]
[1765914234591,10.2298,127.33,127.32,0.06050181]
[1765914235180,3.16,127.34,127.32,1.72050181]
[1765914235384,3.21412959,127.35,127.32,1.72050181]
[1765914236587,3.16,127.34,127.32,8.79080181]
[1765914237893,7.12282959,127.35,127.33,1.66]
[1765914238097,3.21412959,127.35,127.33,1.66]
[1765914238591,3.21412959,127.35,127.33,8.7296]
[1765914238799,0.05412959,127.35,127.34,1.66]
[1765914240000,0.05412959,127.35,127.34,8.7292]
[1765914240890,10.41958593,127.41,127.37,1.66]
[1765914241192,3.16,127.41,127.37,1.66]
[1765914242021,0.05570969,127.4,127.38,8.78203837]
[1765914242399,3.21570969,127.4,127.38,8.78203837]
[1765914243295,0.05570969,127.4,127.39,7.0664]
[1765914243500,0.05570969,127.4,127.39,8.7264]
[1765914255102,0.05570969,127.4,127.39,11.09503889]
[1765914256909,0.05570969,127.4,127.39,8.7264]
[1765914258409,7.25958593,127.5,127.43,1.66]
[1765914258712,3.2,127.47,127.43,1.66]
[1765914259606,3.2,127.47,127.44,8.77494984]
[1765914259804,3.2,127.47,127.44,1.71124984]
[1765914260603,3.2,127.47,127.45,7.0629]
[1765914261008,3.2,127.49,127.46,1.66]
[1765914261202,3.2,127.49,127.46,1.71154205]
[1765914261817,3.2,127.49,127.47,8.7218]
[1765914267812,5.56402698,127.5,127.48,1.66]
[1765914268013,3.2,127.49,127.47,8.7218]
[1765914276018,3.2,127.49,127.47,1.66]
[1765914277623,3.2,127.49,127.47,8.7219]
[1765914284131,3.36,127.5,127.48,8.7214]
[1765914284332,3.36,127.5,127.48,1.66]
[1765914285528,3.36,127.5,127.47,8.722]
[1765914285734,3.36,127.49,127.47,8.722]
[1765914288535,3.36,127.49,127.47,1.66]
[1765914289126,3.36,127.49,127.46,8.77404205]
[1765914289429,3.36,127.49,127.46,0.05154205]
[1765914289632,3.36,127.47,127.46,0.05154205]
[1765914291824,3.36,127.48,127.46,1.71154205]
[1765914292339,5.72402698,127.48,127.46,1.71154205]
[1765914292538,5.72402698,127.48,127.47,1.66]
[1765914293041,5.72402698,127.48,127.46,7.11404205]
[1765914293042,5.72402698,127.48,127.46,8.77404205]
[1765914293432,5.72402698,127.48,127.46,1.71154205]
[1765914294544,5.72402698,127.48,127.46,8.77404205]
[1765914296744,3.36,127.47,127.46,8.77404205]
[1765914297338,3.36,127.49,127.47,8.722]
[1765914297541,2.36402698,127.5,127.48,1.66]
[1765914297845,5.72402698,127.5,127.48,1.66]
[1765914298045,3.36,127.53,127.5,1.66]
[1765914298266,3.36,127.53,127.5,1.71375407]
[1765914299137,3.36,127.52,127.5,0.05375407]
[1765914299342,3.36,127.52,127.5,1.71375407]
[1765914301553,10.4194,127.52,127.5,0.05375407]
[1765914301754,3.36,127.51,127.5,0.05375407]
[1765914303744,7.05175705,127.51,127.5,0.00375407]
[1765914304044,3.18,127.49,127.44,1.71]
[1765914304844,0.05257464,127.48,127.46,1.71]
[1765914305044,3.23257464,127.48,127.46,1.71]
[1765914306755,3.23257464,127.48,127.45,8.826176]
[1765914307552,3.23257464,127.48,127.46,1.71]
[1765914309457,3.18,127.47,127.45,1.763276]
[1765914309648,3.18,127.47,127.45,0.053276]
[1765914310765,10.2425,127.46,127.45,0.053276]
[1765914310954,3.18,127.45,127.39,1.76]
[1765914311152,3.18,127.44,127.39,1.76]
[1765914312051,3.18,127.44,127.36,183.98920968]
[1765914312052,3.18,127.42,127.4,0.05475391]
[1765914312551,3.18,127.42,127.4,1.81475391]
[1765914314157,3.18,127.42,127.4,0.05475391]
[1765914315049,3.18,127.42,127.4,1.81475391]
[1765914315658,0.05420219,127.43,127.4,1.81475391]
[1765914316158,0.05420219,127.43,127.41,8.8252]
[1765914316357,0.05420219,127.43,127.42,1.76]
[1765914320169,0.05420219,127.43,127.42,8.8248]
[1765914323067,69.92,127.49,127.46,1.71]
[1765914323267,10.75255705,127.5,127.46,1.71]
[1765914323268,10.2408,127.5,127.46,1.71]
[1765914323664,3.18,127.49,127.47,1.71]
[1765914324062,3.23315031,127.49,127.47,1.76081041]
[1765914326367,3.18,127.48,127.47,0.05081041]
[1765914327172,3.23315031,127.49,127.47,1.76081041]
[1765914327471,3.23315031,127.49,127.47,8.82271041]
[1765914328667,0.05315031,127.49,127.48,1.71]
[1765914328863,0.05315031,127.49,127.47,8.82271041]
[1765914329371,0.05315031,127.49,127.48,8.7714]
[1765914330359,0.05315031,127.49,127.48,7.0614]
[1765914330568,0.05315031,127.49,127.48,8.7714]
[1765914332074,0.05315031,127.49,127.48,1.71]
[1765914332874,3.23315031,127.49,127.47,0.05081041]
[1765914334675,10.29415031,127.49,127.47,0.05081041]
[1765914335777,10.29415031,127.49,127.47,1.76081041]
[1765914337269,3.23,127.48,127.47,0.05081041]
[1765914337471,13.98522252,127.48,127.47,0.05081041]
[1765914341189,3.23,127.46,127.43,8.7737]
[1765914342178,3.28829175,127.46,127.43,8.82491641]
[1765914342678,10.35089175,127.46,127.44,1.71]
[1765914346390,3.28829175,127.46,127.44,8.7736]
[1765914347190,3.28829175,127.46,127.44,1.71]
[1765914347684,3.28829175,127.46,127.44,8.7735]
[1765914348285,0.05829175,127.46,127.45,1.71]
[1765914348485,0.05829175,127.46,127.45,8.7731]
[1765914352701,3.23,127.53,127.49,1.71]
[1765914353395,3.23,127.53,127.51,8.7697]
[1765914353597,3.27566897,127.53,127.51,8.81975402]
[1765914354192,0.04566897,127.53,127.52,1.71]
[1765914355798,3.23,127.59,127.55,1.66]
[1765914356297,3.23,127.61,127.55,1.66]
[1765914356498,3.23,127.62,127.59,1.66]
[1765914356887,3.23,127.62,127.59,1.72043896]
[1765914357093,3.23,127.62,127.59,8.77563896]
[1765914357295,3.23,127.64,127.6,1.66]
[1765914357493,3.23,127.64,127.61,1.66]
[1765914357695,3.23,127.66,127.61,1.66]
[1765914357893,3.23,127.66,127.63,1.66]
[1765914358204,3.23,127.69,127.64,1.66]
[1765914358390,3.23,127.69,127.65,1.71221657]
[1765914360299,3.23,127.71,127.66,1.66]
[1765914360499,3.23,127.71,127.67,0.05199696]
[1765914360901,3.23,127.71,127.67,1.71199696]
[1765914361200,116.87660112,127.76,127.7,1.66]
[1765914361201,3.23,127.76,127.7,1.66]
[1765914361401,5.58446053,127.76,127.72,0.05901475]
[1765914361598,3.23,127.75,127.72,0.05901475]
[1765914362299,3.23,127.75,127.73,8.28102421]
[1765914362499,3.23,127.75,127.74,8.28102421]
[1765914363300,4.79,127.75,127.74,4.85102421]
[1765914363689,4.79,127.75,127.74,3.07891061]
[1765914363890,7.14446053,127.75,127.74,3.07891061]
[1765914365398,3.34,127.74,127.72,0.05901475]
[1765914365698,5.69446053,127.73,127.72,0.05901475]
[1765914366304,3.34,127.72,127.66,12.53566053]
[1765914366602,5.69446053,127.72,127.66,12.53566053]
[1765914366795,5.69446053,127.72,127.66,10.1812]
[1765914367293,0.05335609,127.7,127.68,0.05765465]
[1765914367495,0.05335609,127.7,127.68,3.18765465]
[1765914370998,0.05335609,127.7,127.69,3.13]
[1765914371401,5.69446053,127.75,127.69,3.13]
[1765914371902,3.34,127.74,127.71,3.13]
[1765914372407,3.34,127.74,127.71,3.18910364]
[1765914374804,3.34,127.75,127.71,3.18910364]
[1765914375003,5.69446053,127.75,127.72,3.13]
[1765914376408,3.34,127.74,127.71,10.23770364]
[1765914376808,2.35446053,127.75,127.72,3.13]
[1765914376809,5.69446053,127.75,127.72,3.13]
[1765914377012,3.34,127.74,127.71,10.23770364]
[1765914377602,3.34,127.74,127.71,3.18910364]
[1765914377914,5.69446053,127.74,127.71,3.18910364]
[1765914378400,3.34,127.77,127.73,3.13]
[1765914378599,2.35446053,127.75,127.74,0.0536547]
[1765914380016,5.69446053,127.77,127.75,3.13]
[1765914380620,2.35446053,127.77,127.75,10.1764]
[1765914380910,5.69446053,127.78,127.75,10.1764]
[1765914381111,5.69446053,127.78,127.74,0.0536547]
[1765914381112,3.34,127.77,127.74,3.1836547]
[1765914381309,3.34,127.76,127.74,3.1836547]
[1765914382416,3.34,127.76,127.74,10.2306547]
[1765914382608,3.34,127.76,127.74,0.0536547]
[1765914382800,5.69446053,127.75,127.74,0.0536547]
[1765914384215,5.69446053,127.75,127.74,0.0036547]
[1765914384417,3.34,127.72,127.68,3.13]
[1765914384609,3.34,127.71,127.68,3.13]
[1765914384808,3.34,127.75,127.7,3.13]
[1765914385009,2.35446053,127.73,127.7,3.13]
[1765914385217,3.34,127.72,127.69,10.1797]
[1765914385821,3.39581553,127.72,127.69,10.23812039]
[1765914386010,3.39581553,127.72,127.7,3.13]
[1765914386208,3.39581553,127.72,127.69,10.23812039]
[1765914387920,3.34,127.7,127.69,0.05842039]
[1765914390228,3.34,127.69,127.63,3.13]
[1765914390525,3.34,127.66,127.63,3.13]
[1765914391021,3.34,127.66,127.62,10.1832]
[1765914391319,2.35446053,127.67,127.63,0.05960807]
[1765914391320,3.39199287,127.65,127.63,0.05960807]
[1765914393124,3.34,127.64,127.63,0.05960807]
[1765914393629,69.96,127.64,127.63,0.05960807]
[1765914394725,3.34,127.64,127.63,0.05960807]
[1765914395527,5.5964534,127.65,127.63,0.05960807]
[1765914395728,0.05199287,127.65,127.63,3.33960807]
[1765914396329,0.05199287,127.65,127.63,10.39270807]
[1765914396532,0.05199287,127.65,127.64,3.28]
[1765914398131,0.05199287,127.65,127.63,10.39270807]
[1765914400034,3.24199287,127.65,127.63,7.11270807]
[1765914400735,3.24199287,127.65,127.63,10.39270807]
[1765914400935,3.24199287,127.65,127.63,7.11270807]
[1765914401142,3.24199287,127.65,127.63,0.05960807]
[1765914402030,3.19,127.64,127.63,0.05960807]
[1765914404334,69.83,127.64,127.63,0.05960807]
[1765914405125,76.8826,127.64,127.63,0.05960807]
[1765914405328,3.19,127.63,127.57,7.056]
[1765914405728,3.19,127.63,127.57,10.336]
[1765914405729,3.19,127.62,127.57,10.336]
[1765914406036,3.19,127.62,127.58,3.28]
[1765914406626,3.24584623,127.61,127.59,0.05504861]
[1765914408940,10.30034623,127.61,127.59,0.05504861]
[1765914409142,3.19,127.6,127.59,0.05504861]
[1765914410439,7.11034623,127.61,127.59,0.05504861]
[1765914410645,3.24584623,127.61,127.59,3.33504861]
[1765914411142,3.24584623,127.61,127.59,0.05504861]
[1765914414857,10.30024623,127.61,127.59,0.05504861]
[1765914415148,3.19,127.6,127.59,0.05504861]
[1765914415648,10.2448,127.6,127.59,0.05504861]
[1765914415850,76.9048,127.6,127.59,0.05504861]
[1765914419456,79.26562571,127.6,127.59,0.05504861]
[1765914419951,3.19,127.57,127.53,3.28]
[1765914420555,5.55082571,127.56,127.53,3.28]
[1765914420749,3.19,127.55,127.51,3.28]
[1765914420954,5.55082571,127.54,127.53,0.05394024]
[1765914421357,3.19,127.54,127.53,0.05394024]
[1765914423455,69.85,127.54,127.53,0.05394024]
[1765914424565,10.25458895,127.56,127.53,3.23394024]
[1765914424752,66.68,127.54,127.53,0.05394024]
[1765914425456,69.82,127.54,127.53,0.05394024]
[1765914427464,3.14,127.5,127.44,3.18]
[1765914427653,3.14,127.48,127.44,3.18]
[1765914428557,0.05108367,127.47,127.45,3.23586358]
[1765914428755,0.05108367,127.47,127.45,10.29896358]
[1765914429158,3.19108367,127.47,127.45,7.11896358]
[1765914429660,3.19108367,127.47,127.45,0.05586358]
[1765914430166,0.05108367,127.47,127.45,10.29886358]
[1765914430364,0.05108367,127.47,127.46,3.18]
[1765914431865,3.19108367,127.47,127.45,7.11886358]
[1765914432067,3.19108367,127.47,127.45,0.05586358]
[1765914433960,3.14,127.46,127.45,0.05586358]
[1765914437470,0.05108367,127.47,127.45,3.23586358]
[1765914437868,0.05108367,127.47,127.46,10.2425]
[1765914439575,329.2146,127.61,127.46,10.2425]
[1765914439576,3.14,127.58,127.51,109.8175]
[1765914439769,3.14,127.58,127.48,219.6884]
[1765914439964,3.14,127.58,127.5,109.8266]
[1765914440470,0.05469589,127.55,127.53,0.05126182]
[1765914440771,0.05469589,127.55,127.53,109.85206182]
[1765914441671,0.05469589,127.55,127.53,116.91046182]
[1765914442674,0.05469589,127.55,127.53,118.47046182]
[1765914442878,3.14,127.61,127.55,7.0574]
[1765914443473,3.14,127.61,127.56,7.0567]
[1765914443873,0.05146714,127.6,127.57,7.10652737]
[1765914444072,0.05146714,127.6,127.57,109.81772737]
[1765914444478,3.19146714,127.6,127.57,0.05052737]
[1765914444781,3.14,127.67,127.6,109.739]
[1765914444970,3.14,127.67,127.61,109.7331]
[1765914445675,0.05629217,127.65,127.63,0.0589299]
[1765914445866,3.19629217,127.65,127.63,0.0589299]
[1765914461782,3.19629217,127.65,127.63,7.1120299]
[1765914463190,3.19629217,127.65,127.63,0.0589299]
[1765914463894,3.19629217,127.65,127.54,109.7879]
[1765914463895,3.21,127.62,127.57,109.7677]
[1765914464789,176.3374,127.68,127.57,109.7677]
[1765914464790,3.27015705,127.61,127.6,7.0547]
[1765914464986,3.21,127.61,127.59,0.05875781]
[1765914466986,3.21,127.61,127.59,7.11395781]
[1765914474303,3.21,127.61,127.6,7.0548]
[1765914476599,3.21,127.61,127.59,0.05875781]
[1765914478599,3.21,127.61,127.59,7.11395781]
[1765914480288,3.26924309,127.62,127.59,0.05875781]
[1765914480890,3.26924309,127.62,127.6,7.0543]
[1765914481906,3.26924309,127.62,127.59,0.05875781]
[1765914482302,0.05924309,127.62,127.59,0.05875781]
[1765914482503,0.05924309,127.62,127.61,7.0542]
[1765914483206,3.21,127.68,127.64,7.0522]
[1765914484106,3.2715275,127.67,127.65,0.05888693]
[1765914485303,10.2715,127.66,127.65,0.05888693]
[1765914485493,12.62808278,127.66,127.65,0.05888693]
[1765914486809,3.22,127.64,127.61,7.0542]
[1765914487822,3.27402292,127.64,127.61,7.1039936]
[1765914493504,3.27402292,127.64,127.61,0.0497936]
[1765914494004,3.22,127.62,127.61,0.0497936]
[1765914494204,5.57658278,127.62,127.61,0.0497936]
[1765914495613,12.63028278,127.62,127.61,0.0497936]
[1765914496109,0.05402292,127.64,127.63,7.0531]
[1765914496305,0.05402292,127.64,127.63,2.35658278]
[1765914497219,3.22,127.68,127.63,3.91658278]
[1765914497404,3.22,127.68,127.63,2.35658278]
[1765914498108,3.22,127.66,127.64,0.05078217]
[1765914501810,3.22,127.66,127.64,0.00078217]
[1765914502312,3.22,127.65,127.64,0.00078217]
[1765914502710,5.57658278,127.65,127.64,0.00078217]
[1765914507018,3.22,127.65,127.64,0.00078217]
[1765914510312,10.272,127.65,127.64,0.00078217]
[1765914510922,12.62858278,127.65,127.64,0.00078217]
[1765914511819,3.22,127.61,127.57,14.37719112]
[1765914512026,3.22,127.61,127.57,16.7337739]
[1765914512825,3.22,127.61,127.58,0.05915083]
[1765914513027,3.27793129,127.6,127.58,0.05915083]
[1765914513328,0.05793129,127.6,127.58,7.11505083]
[1765914515234,3.45793129,127.6,127.58,0.05915083]
[1765914520845,3.45793129,127.6,127.58,7.11505083]
[1765914520846,0.05793129,127.6,127.58,7.11505083]
[1765914521041,0.05793129,127.6,127.58,0.05915083]
[1765914522543,0.05793129,127.6,127.59,7.0553]
[1765914526450,3.45793129,127.6,127.59,7.0553]
[1765914526743,3.45793129,127.6,127.58,0.05915083]
[1765914529046,7.30841024,127.67,127.58,0.05915083]
[1765914529245,3.4,127.67,127.63,2.35658278]
[1765914529543,3.4,127.67,127.61,156.31]
[1765914529751,3.4,127.67,127.61,46.58]
[1765914529939,3.4,127.67,127.63,0.05406983]
[1765914530248,3.45066125,127.65,127.63,0.05406983]
[1765914530642,3.45066125,127.65,127.64,69.01658278]
[1765914530643,0.00066125,127.65,127.64,69.01658278]
[1765914531039,0.00066125,127.65,127.64,76.33014661]
[1765914531441,0.00066125,127.65,127.64,77.89014661]
[1765914533450,0.00066125,127.65,127.64,70.57658278]
[1765914534060,2.35658278,127.73,127.64,70.57658278]
[1765914534061,3.4,127.73,127.65,109.6936]
[1765914534350,3.4,127.73,127.67,2.35658278]
[1765914534546,3.4,127.73,127.68,7.0502]
[1765914535158,3.4,127.71,127.69,0.05499762]
[1765914537151,3.4,127.7,127.69,0.00499762]
[1765914537645,5.75658278,127.7,127.69,0.00499762]
[1765914537846,3.4,127.7,127.69,0.00499762]
[1765914538254,5.75658278,127.7,127.69,0.00499762]
[1765914541754,5.75658278,127.7,127.64,68.99658278]
[1765914541755,3.4,127.67,127.6,117.04846383]
[1765914542060,3.4,127.67,127.61,2.35658278]
[1765914542252,3.4,127.67,127.62,109.723]
[1765914542458,3.4,127.69,127.63,112.06818278]
[1765914542754,0.05239567,127.67,127.65,0.05619725]
[1765914543054,0.05239567,127.67,127.66,7.0514]
[1765914551574,3.28239567,127.67,127.65,0.05619725]
[1765914552562,3.23,127.66,127.65,0.05619725]
[1765914556770,3.23,127.66,127.65,7.10819725]
[1765914557073,3.28239567,127.67,127.65,0.05619725]
[1765914558677,3.28239567,127.67,127.66,7.0515]
[1765914558678,0.05239567,127.67,127.66,7.0515]
[1765914562780,3.28239567,127.67,127.66,7.0515]
[1765914563276,0.05239567,127.67,127.66,7.0515]
[1765914570984,3.68112196,127.73,127.71,7.0487]
[1765914570985,3.23,127.73,127.71,7.0487]
[1765914572288,0.05390898,127.73,127.71,7.10122485]
[1765914572488,3.28390898,127.73,127.71,7.10122485]
[1765914573693,3.28390898,127.73,127.71,0.05252485]
[1765914574095,3.28390898,127.73,127.71,0.00252485]
[1765914574595,3.16,127.72,127.71,0.00252485]
[1765914575600,10.2082,127.72,127.71,0.00252485]
[1765914577117,13.88932196,127.72,127.71,0.00252485]
[1765914577400,15.44932196,127.72,127.71,0.00252485]
[1765914580600,3.16,127.69,127.65,7.052]
[1765914581218,3.16,127.66,127.62,7.0532]
[1765914581803,3.16,127.66,127.6,7.3021346]
[1765914581804,3.21249537,127.65,127.63,0.05777126]
[1765914582004,3.21249537,127.65,127.63,7.11087126]
[1765914583703,3.21249537,127.65,127.63,0.05777126]
[1765914592211,0.05249537,127.65,127.63,7.11077126]
[1765914592408,3.21249537,127.65,127.63,7.11077126]
[1765914593102,3.21249537,127.65,127.64,7.0526]
[1765914594734,0.05249537,127.65,127.64,7.0526]
[1765914595098,3.21249537,127.65,127.64,7.0526]
[1765914597608,3.21249537,127.65,127.63,0.05777126]
[1765914598107,3.21249537,127.65,127.63,7.11047126]
[1765914598713,3.21249537,127.65,127.63,0.05777126]
[1765914599617,3.21249537,127.65,127.64,7.0526]
[1765914600008,0.05249537,127.65,127.64,7.0526]
[1765914601308,3.21249537,127.65,127.64,7.0526]
[1765914602215,0.05249537,127.65,127.64,7.0526]
[1765914603214,3.21249537,127.65,127.64,7.0526]
[1765914604616,3.21249537,127.65,127.63,7.11087126]
[1765914605136,0.05249537,127.65,127.63,0.05777126]
[1765914605323,0.05249537,127.65,127.64,7.0526]
[1765914612724,3.47249537,127.65,127.63,0.05777126]
[1765914613920,0.05249537,127.65,127.64,7.0526]
[1765914614916,3.47249537,127.65,127.64,7.0526]
[1765914617022,0.05249537,127.65,127.64,7.0526]
[1765914623819,3.47249537,127.65,127.63,7.11087126]
[1765914624407,3.47249537,127.65,127.63,0.05777126]
[1765914624608,5.77745255,127.64,127.63,0.05777126]
[1765914625619,12.83005255,127.64,127.63,0.05777126]
[1765914625927,3.47249537,127.65,127.63,0.05777126]
[1765914626931,0.05249537,127.65,127.63,0.05777126]
[1765914628611,0.05249537,127.65,127.64,7.0526]
[1765914637718,7.33402831,127.7,127.67,7.0505]
[1765914637931,3.11,127.71,127.67,7.0505]
[1765914638731,3.1594065,127.7,127.68,0.05662213]
[1765914641831,3.1594065,127.7,127.68,7.10702213]
[1765914648232,3.1594065,127.7,127.69,7.0498]
[1765914649134,0.0494065,127.7,127.69,7.0498]
[1765914661846,3.1594065,127.7,127.68,0.05662213]
[1765914662542,0.0494065,127.7,127.68,0.05662213]
[1765914662744,0.0494065,127.7,127.68,2.41407468]
[1765914663545,0.0494065,127.7,127.69,7.0498]
[1765914665350,187.21031301,127.79,127.71,109.6422]
[1765914665351,7.33402831,127.78,127.71,109.6422]
[1765914665650,7.33402831,127.81,127.75,109.6116]
[1765914665945,12.80483106,127.89,127.8,109.568]
[1765914666138,3.14,127.9,127.83,109.5444]